[Event "*** Titled Tuesday 3|2 Blitz (Early)"]
[Site "Chess.com"]
[Date "2016.11.01"]
[Round "8"]
[White "Morshynska"]
[Black "uzbektiger95"]
[Result "0-1"]
[WhiteElo "2150"]
[BlackElo "2606"]
[TimeControl "180+2"]
[EndTime "12:42:52 PDT"]
[Termination "uzbektiger95 won by resignation"]

1. Nf3 {[%clk 0:03:01.9]} 1... c5 {[%clk 0:03:00.2]} 2. c4 {[%clk 0:03:01.8]}
2... Nc6 {[%clk 0:03:01.4]} 3. d4 {[%clk 0:03:01]} 3... cxd4 {[%clk 0:03:03.3]}
4. Nxd4 {[%clk 0:03:02.7]} 4... Nf6 {[%clk 0:03:05.2]} 5. Nc3 {[%clk 0:03:02.2]}
5... e6 {[%clk 0:03:06.5]} 6. e3 {[%clk 0:02:59]} 6... d5 {[%clk 0:03:06.6]} 7.
Be2 {[%clk 0:02:54]} 7... Bd6 {[%clk 0:03:06.8]} 8. cxd5 {[%clk 0:02:52.2]} 8...
exd5 {[%clk 0:03:07.6]} 9. Bf3 {[%clk 0:02:48.5]} 9... O-O {[%clk 0:03:07.4]}
10. O-O {[%clk 0:02:45.7]} 10... Re8 {[%clk 0:03:06.5]} 11. b3 {[%clk
0:02:40.3]} 11... Nxd4 {[%clk 0:03:06.4]} 12. Qxd4 {[%clk 0:02:42.2]} 12... Be5
{[%clk 0:03:07.7]} 13. Qd3 {[%clk 0:02:39.9]} 13... Ne4 {[%clk 0:03:05.5]} 14.
Bb2 {[%clk 0:02:34.1]} 14... Bf5 {[%clk 0:03:05.7]} 15. Bxe4 {[%clk 0:02:30.2]}
15... Qh4 {[%clk 0:02:46.9]} 16. g3 {[%clk 0:02:26]} 16... dxe4 {[%clk
0:02:47.5]} 17. Qb5 {[%clk 0:02:08.1]} 17... Qh3 {[%clk 0:02:20.7]} 18. Qxb7
{[%clk 0:01:41.7]} 18... Bg4 {[%clk 0:01:52.7]} 19. f3 {[%clk 0:00:59.4]} 19...
Bxg3 {[%clk 0:01:42.7]} 20. hxg3 {[%clk 0:00:56.7]} 20... Qxg3+ {[%clk
0:01:43.8]} 21. Kh1 {[%clk 0:00:58.1]} 21... exf3 {[%clk 0:01:34.5]} 0-1

[Event "*** Titled Tuesday 3|2 Blitz (Early)"]
[Site "Chess.com"]
[Date "2016.11.01"]
[Round "8"]
[White "fastestmindalive"]
[Black "Bishops83"]
[Result "1-0"]
[WhiteElo "2515"]
[BlackElo "2257"]
[TimeControl "180+2"]
[EndTime "12:43:40 PDT"]
[Termination "fastestmindalive won by resignation"]

1. e4 {[%clk 0:03:01.9]} 1... c5 {[%clk 0:03:00.9]} 2. Nc3 {[%clk 0:03:02.4]}
2... Nc6 {[%clk 0:03:00.5]} 3. Bb5 {[%clk 0:03:03.1]} 3... Nd4 {[%clk
0:02:59.6]} 4. Nf3 {[%clk 0:03:03.9]} 4... Nxb5 {[%clk 0:02:56.7]} 5. Nxb5
{[%clk 0:03:05.8]} 5... d6 {[%clk 0:02:55.9]} 6. O-O {[%clk 0:03:06.3]} 6... Bd7
{[%clk 0:02:51.2]} 7. Nc3 {[%clk 0:03:07.1]} 7... e6 {[%clk 0:02:50.7]} 8. d4
{[%clk 0:03:09]} 8... cxd4 {[%clk 0:02:50.6]} 9. Qxd4 {[%clk 0:03:10.9]} 9...
Nf6 {[%clk 0:02:49.2]} 10. Bg5 {[%clk 0:03:11.6]} 10... Be7 {[%clk 0:02:49.6]}
11. Bxf6 {[%clk 0:03:12.6]} 11... gxf6 {[%clk 0:02:47]} 12. Rae1 {[%clk
0:03:11.1]} 12... Bc6 {[%clk 0:02:43.2]} 13. Re3 {[%clk 0:03:12.2]} 13... a6
{[%clk 0:02:37.2]} 14. Nd2 {[%clk 0:03:13]} 14... b5 {[%clk 0:02:37.4]} 15. a3
{[%clk 0:03:14.1]} 15... Rb8 {[%clk 0:02:35.9]} 16. f4 {[%clk 0:03:09.8]} 16...
Qb6 {[%clk 0:02:35.3]} 17. Qxb6 {[%clk 0:03:10.1]} 17... Rxb6 {[%clk 0:02:37.2]}
18. f5 {[%clk 0:03:10.8]} 18... d5 {[%clk 0:02:28.3]} 19. Rg3 {[%clk 0:02:43.2]}
19... Bc5+ {[%clk 0:01:52.6]} 20. Kh1 {[%clk 0:02:41.7]} 20... d4 {[%clk
0:01:38.5]} 21. Nb3 {[%clk 0:02:08.7]} 21... dxc3 {[%clk 0:01:28.6]} 22. Nxc5
{[%clk 0:02:09.5]} 22... cxb2 {[%clk 0:01:30.5]} 23. Rb3 {[%clk 0:02:10.4]}
23... Ke7 {[%clk 0:01:27.2]} 24. Rxb2 {[%clk 0:02:09.4]} 24... Rd8 {[%clk
0:01:25.3]} 25. c3 {[%clk 0:02:07.5]} 25... Be8 {[%clk 0:01:10.1]} 26. fxe6
{[%clk 0:01:30.3]} 26... fxe6 {[%clk 0:01:10.2]} 27. Nb3 {[%clk 0:01:19.2]}
27... e5 {[%clk 0:01:06.2]} 28. Na5 {[%clk 0:01:14.6]} 28... Bg6 {[%clk
0:00:56.3]} 29. Re2 {[%clk 0:01:04.5]} 29... Rd3 {[%clk 0:00:55.8]} 30. Rc1
{[%clk 0:01:04.4]} 30... Rbd6 {[%clk 0:00:52.7]} 31. h3 {[%clk 0:01:05.5]} 31...
Rd1+ {[%clk 0:00:52.4]} 32. Rxd1 {[%clk 0:01:06.3]} 32... Rd3 {[%clk 0:00:54.3]}
33. Rxd3 {[%clk 0:01:04.8]} 1-0

[Event "*** Titled Tuesday 3|2 Blitz (Early)"]
[Site "Chess.com"]
[Date "2016.11.01"]
[Round "8"]
[White "DanielNaroditsky"]
[Black "fireheart92"]
[Result "1/2-1/2"]
[WhiteElo "2737"]
[BlackElo "2580"]
[TimeControl "180+2"]
[EndTime "12:43:47 PDT"]
[Termination "Game drawn by repetition"]

1. d4 {[%clk 0:03:02]} 1... Nf6 {[%clk 0:03:00.7]} 2. Bf4 {[%clk 0:03:03.4]}
2... d5 {[%clk 0:03:01]} 3. e3 {[%clk 0:03:04.4]} 3... Bf5 {[%clk 0:03:02.2]} 4.
c4 {[%clk 0:03:04.4]} 4... e6 {[%clk 0:03:03.6]} 5. Nc3 {[%clk 0:03:04.6]} 5...
Bb4 {[%clk 0:03:04.7]} 6. Qb3 {[%clk 0:02:54.2]} 6... c5 {[%clk 0:03:03.1]} 7.
dxc5 {[%clk 0:02:51.3]} 7... Nc6 {[%clk 0:03:04.4]} 8. Nf3 {[%clk 0:02:42.8]}
8... Ne4 {[%clk 0:02:44]} 9. cxd5 {[%clk 0:02:16.5]} 9... Nxc5 {[%clk
0:02:30.2]} 10. Qd1 {[%clk 0:02:17]} 10... Qxd5 {[%clk 0:02:19]} 11. Qxd5 {[%clk
0:02:12.5]} 11... exd5 {[%clk 0:02:20.4]} 12. Be2 {[%clk 0:02:02.4]} 12... Na4
{[%clk 0:02:09.7]} 13. Rc1 {[%clk 0:01:52.8]} 13... Nxb2 {[%clk 0:02:10.7]} 14.
O-O {[%clk 0:01:53.7]} 14... Nd3 {[%clk 0:02:08.3]} 15. Bxd3 {[%clk 0:01:51.3]}
15... Bxd3 {[%clk 0:02:09.6]} 16. Rfd1 {[%clk 0:01:51.9]} 16... Bxc3 {[%clk
0:02:03.8]} 17. Rxd3 {[%clk 0:01:48.5]} 17... Bf6 {[%clk 0:02:00.6]} 18. Rxd5
{[%clk 0:01:34.5]} 18... Rd8 {[%clk 0:01:46.6]} 19. Rb5 {[%clk 0:01:35.3]} 19...
Rd7 {[%clk 0:01:45.3]} 20. g4 {[%clk 0:01:34.4]} 20... O-O {[%clk 0:01:43]} 21.
g5 {[%clk 0:01:35.3]} 21... Be7 {[%clk 0:01:43.6]} 22. h4 {[%clk 0:01:31.1]}
22... f6 {[%clk 0:01:45.1]} 23. Kg2 {[%clk 0:01:28.7]} 23... Rfd8 {[%clk
0:01:43.2]} 24. gxf6 {[%clk 0:01:20]} 24... Bxf6 {[%clk 0:01:37.4]} 25. h5
{[%clk 0:01:20.9]} 25... Re8 {[%clk 0:01:25]} 26. Rcb1 {[%clk 0:01:17]} 26... b6
{[%clk 0:01:25]} 27. Rc1 {[%clk 0:01:17.5]} 27... Na5 {[%clk 0:01:25.6]} 28. Rf5
{[%clk 0:01:11.9]} 28... Bb2 {[%clk 0:01:15.3]} 29. Rc2 {[%clk 0:01:12.3]} 29...
Ba1 {[%clk 0:01:09.7]} 30. Rc1 {[%clk 0:01:09.4]} 30... Bb2 {[%clk 0:01:10.8]}
31. Rc2 {[%clk 0:01:07.1]} 31... Ba1 {[%clk 0:01:10.4]} 32. Rc1 {[%clk 0:00:44]}
32... Bb2 {[%clk 0:01:11.1]} 33. Rc2 {[%clk 0:00:37.2]} 33... Ba1 {[%clk
0:01:12.3]} 1/2-1/2

[Event "*** Titled Tuesday 3|2 Blitz (Early)"]
[Site "Chess.com"]
[Date "2016.11.01"]
[Round "8"]
[White "GMKrikor"]
[Black "Keaton87"]
[Result "0-1"]
[WhiteElo "2547"]
[BlackElo "2456"]
[TimeControl "180+2"]
[EndTime "12:44:27 PDT"]
[Termination "Keaton87 won by resignation"]

1. e4 {[%clk 0:03:02]} 1... c5 {[%clk 0:02:58.6]} 2. Nf3 {[%clk 0:03:03.1]} 2...
d6 {[%clk 0:02:59.8]} 3. c3 {[%clk 0:03:01.9]} 3... Nf6 {[%clk 0:03:00.1]} 4. h3
{[%clk 0:03:01.6]} 4... g6 {[%clk 0:03:00.2]} 5. Bd3 {[%clk 0:02:58.4]} 5... Bg7
{[%clk 0:03:01.2]} 6. Bc2 {[%clk 0:02:59.9]} 6... O-O {[%clk 0:03:02.8]} 7. O-O
{[%clk 0:03:01.1]} 7... Nc6 {[%clk 0:03:04]} 8. d4 {[%clk 0:03:02.3]} 8... cxd4
{[%clk 0:03:05.1]} 9. cxd4 {[%clk 0:03:03.4]} 9... d5 {[%clk 0:03:06.7]} 10. e5
{[%clk 0:03:01.4]} 10... Ne4 {[%clk 0:03:07.9]} 11. Nc3 {[%clk 0:02:55.7]} 11...
Nxc3 {[%clk 0:03:08.4]} 12. bxc3 {[%clk 0:02:57.3]} 12... f6 {[%clk 0:03:10.1]}
13. exf6 {[%clk 0:02:20.5]} 13... exf6 {[%clk 0:03:12]} 14. Re1 {[%clk
0:02:20.8]} 14... Re8 {[%clk 0:03:11.2]} 15. Bf4 {[%clk 0:01:36.1]} 15... Be6
{[%clk 0:03:09]} 16. h4 {[%clk 0:01:01.7]} 16... Bf7 {[%clk 0:03:06]} 17. h5
{[%clk 0:01:01.5]} 17... Rxe1+ {[%clk 0:02:56.8]} 18. Nxe1 {[%clk 0:01:00.3]}
18... Qe7 {[%clk 0:02:49.1]} 19. Nd3 {[%clk 0:00:55.2]} 19... Re8 {[%clk
0:02:49]} 20. hxg6 {[%clk 0:00:47.4]} 20... hxg6 {[%clk 0:02:36.1]} 21. Qf3
{[%clk 0:00:46.5]} 21... Qe2 {[%clk 0:02:35.7]} 22. Qxe2 {[%clk 0:00:38.8]}
22... Rxe2 {[%clk 0:02:35.8]} 23. Rc1 {[%clk 0:00:40.7]} 23... g5 {[%clk
0:02:34.1]} 24. Be3 {[%clk 0:00:33.3]} 24... Bg6 {[%clk 0:02:35.2]} 25. Bb1
{[%clk 0:00:27.2]} 25... Bxd3 {[%clk 0:02:36.4]} 26. Bxd3 {[%clk 0:00:28.2]}
26... Rxa2 {[%clk 0:02:38.2]} 27. Rb1 {[%clk 0:00:29]} 27... b6 {[%clk 0:02:37]}
28. g3 {[%clk 0:00:20.9]} 28... Ra3 {[%clk 0:02:35.4]} 29. Rc1 {[%clk
0:00:20.2]} 29... Na5 {[%clk 0:02:36]} 30. Be2 {[%clk 0:00:13.9]} 30... Kf7
{[%clk 0:02:35.9]} 31. Bf3 {[%clk 0:00:14.7]} 31... Ke6 {[%clk 0:02:36.5]} 32.
Bg4+ {[%clk 0:00:06.3]} 32... Kd6 {[%clk 0:02:37.4]} 33. Bd2 {[%clk 0:00:06]}
33... Nc4 {[%clk 0:02:37.5]} 34. Be1 {[%clk 0:00:07.4]} 34... a5 {[%clk
0:02:36]} 35. Bf5 {[%clk 0:00:07.9]} 35... a4 {[%clk 0:02:36.3]} 36. Rb1 {[%clk
0:00:08.2]} 36... Rb3 {[%clk 0:02:35.8]} 37. Ra1 {[%clk 0:00:09.7]} 37... a3
{[%clk 0:02:36.5]} 38. Kf1 {[%clk 0:00:10.9]} 38... Rb2 {[%clk 0:02:35.5]} 39.
Bb1 {[%clk 0:00:10.5]} 39... Bf8 {[%clk 0:02:34.4]} 40. Ba2 {[%clk 0:00:10.7]}
40... Kc6 {[%clk 0:02:33.8]} 41. g4 {[%clk 0:00:08.3]} 41... Bd6 {[%clk
0:02:33.5]} 42. Bb1 {[%clk 0:00:09]} 42... b5 {[%clk 0:02:33.7]} 43. Bg6 {[%clk
0:00:09]} 43... Kb6 {[%clk 0:02:33.9]} 44. Bb1 {[%clk 0:00:07.3]} 44... Ka5
{[%clk 0:02:34.7]} 45. Ba2 {[%clk 0:00:05.4]} 45... Ka4 {[%clk 0:02:34.4]} 0-1

[Event "*** Titled Tuesday 3|2 Blitz (Early)"]
[Site "Chess.com"]
[Date "2016.11.01"]
[Round "8"]
[White "Wolverine_master"]
[Black "Rating-Schmating"]
[Result "1-0"]
[WhiteElo "2084"]
[BlackElo "2247"]
[TimeControl "180+2"]
[EndTime "12:44:34 PDT"]
[Termination "Wolverine_master won by checkmate"]

1. e4 {[%clk 0:03:01.9]} 1... e6 {[%clk 0:02:59.3]} 2. d4 {[%clk 0:03:01.6]}
2... d5 {[%clk 0:02:59.5]} 3. Nd2 {[%clk 0:03:01.8]} 3... a6 {[%clk 0:03:00.4]}
4. Bd3 {[%clk 0:03:01.3]} 4... c5 {[%clk 0:02:58.2]} 5. c3 {[%clk 0:03:01.8]}
5... Nc6 {[%clk 0:02:54.4]} 6. Ne2 {[%clk 0:02:50.2]} 6... cxd4 {[%clk
0:02:51.2]} 7. cxd4 {[%clk 0:02:37.5]} 7... dxe4 {[%clk 0:02:51.3]} 8. Nxe4
{[%clk 0:02:36.5]} 8... Bb4+ {[%clk 0:02:51]} 9. Bd2 {[%clk 0:02:34.1]} 9...
Bxd2+ {[%clk 0:02:49.7]} 10. Qxd2 {[%clk 0:02:34.5]} 10... Nf6 {[%clk
0:02:48.3]} 11. O-O {[%clk 0:02:00]} 11... O-O {[%clk 0:02:45.6]} 12. Rfd1
{[%clk 0:01:47]} 12... Nxe4 {[%clk 0:02:40.7]} 13. Bxe4 {[%clk 0:01:45.5]} 13...
Ne7 {[%clk 0:02:38.3]} 14. d5 {[%clk 0:01:37.6]} 14... exd5 {[%clk 0:02:34]} 15.
Bxd5 {[%clk 0:01:37]} 15... Nxd5 {[%clk 0:02:34]} 16. Qxd5 {[%clk 0:01:38.4]}
16... Qxd5 {[%clk 0:02:34.4]} 17. Rxd5 {[%clk 0:01:40.3]} 17... Be6 {[%clk
0:02:36.1]} 18. Rd2 {[%clk 0:01:39.2]} 18... Rfd8 {[%clk 0:02:36.5]} 19. Rad1
{[%clk 0:01:40]} 19... Rxd2 {[%clk 0:02:37.4]} 20. Rxd2 {[%clk 0:01:38.2]} 20...
Bxa2 {[%clk 0:02:38.2]} 21. Nc3 {[%clk 0:01:16.9]} 21... Be6 {[%clk 0:02:36.7]}
22. f4 {[%clk 0:01:13.6]} 22... g6 {[%clk 0:02:36.4]} 23. Kf2 {[%clk 0:01:14.8]}
23... Kg7 {[%clk 0:02:36.7]} 24. Ne4 {[%clk 0:01:15.9]} 24... Rc8 {[%clk
0:02:35.8]} 25. Nd6 {[%clk 0:00:55.6]} 25... Rb8 {[%clk 0:02:26.5]} 26. Ke3
{[%clk 0:00:53.3]} 26... b5 {[%clk 0:02:24.9]} 27. Kd4 {[%clk 0:00:48.3]} 27...
Kf6 {[%clk 0:02:16.9]} 28. Kc5 {[%clk 0:00:45.9]} 28... Ke7 {[%clk 0:02:16.3]}
29. Ne4 {[%clk 0:00:39.2]} 29... Rc8+ {[%clk 0:02:14.5]} 30. Kb6 {[%clk
0:00:38.5]} 30... Rc4 {[%clk 0:02:15.2]} 31. Re2 {[%clk 0:00:32]} 31... Kd7
{[%clk 0:01:47.7]} 32. Nc5+ {[%clk 0:00:30.4]} 32... Kd6 {[%clk 0:01:47.3]} 33.
Nxe6 {[%clk 0:00:28.3]} 33... fxe6 {[%clk 0:01:46.9]} 34. Kxa6 {[%clk
0:00:28.1]} 34... Kc5 {[%clk 0:01:39.3]} 35. Re5+ {[%clk 0:00:24.8]} 35... Kb4
{[%clk 0:01:32.9]} 36. Rxb5+ {[%clk 0:00:24.4]} 36... Ka4 {[%clk 0:01:30.2]} 37.
b3+ {[%clk 0:00:25.2]} 37... Ka3 {[%clk 0:01:30.7]} 38. bxc4 {[%clk 0:00:26.6]}
38... Ka4 {[%clk 0:01:31.5]} 39. c5 {[%clk 0:00:24.4]} 39... Ka3 {[%clk
0:01:32.4]} 40. c6 {[%clk 0:00:25.6]} 40... Ka2 {[%clk 0:01:34.3]} 41. c7 {[%clk
0:00:26.8]} 41... Ka1 {[%clk 0:01:36.2]} 42. c8=Q {[%clk 0:00:28]} 42... e5
{[%clk 0:01:38.1]} 43. Qc4 {[%clk 0:00:28.1]} 43... e4 {[%clk 0:01:39.1]} 44.
Qa4# {[%clk 0:00:29.1]} 1-0

[Event "*** Titled Tuesday 3|2 Blitz (Early)"]
[Site "Chess.com"]
[Date "2016.11.01"]
[Round "8"]
[White "LawrenceTrent"]
[Black "psv98"]
[Result "0-1"]
[WhiteElo "2518"]
[BlackElo "2635"]
[TimeControl "180+2"]
[EndTime "12:44:37 PDT"]
[Termination "psv98 won by checkmate"]

1. d4 {[%clk 0:02:59.7]} 1... Nf6 {[%clk 0:03:00.3]} 2. Bg5 {[%clk 0:03:00.9]}
2... d5 {[%clk 0:03:00.7]} 3. e3 {[%clk 0:03:00.5]} 3... e6 {[%clk 0:02:55.3]}
4. Nd2 {[%clk 0:03:00.4]} 4... c5 {[%clk 0:02:55.8]} 5. c3 {[%clk 0:03:01]} 5...
Nbd7 {[%clk 0:02:53.1]} 6. Ngf3 {[%clk 0:02:59.8]} 6... Bd6 {[%clk 0:02:52.6]}
7. Bd3 {[%clk 0:02:57.6]} 7... Qc7 {[%clk 0:02:52.4]} 8. O-O {[%clk 0:02:56]}
8... h6 {[%clk 0:02:52.4]} 9. Bh4 {[%clk 0:02:55.8]} 9... O-O {[%clk 0:02:52.5]}
10. e4 {[%clk 0:02:44.9]} 10... dxe4 {[%clk 0:02:33.9]} 11. Nxe4 {[%clk
0:02:45.4]} 11... Nxe4 {[%clk 0:02:34.9]} 12. Bxe4 {[%clk 0:02:44.1]} 12... f5
{[%clk 0:02:35.6]} 13. Bd3 {[%clk 0:02:25]} 13... g5 {[%clk 0:02:36.3]} 14. Bg3
{[%clk 0:02:07.6]} 14... f4 {[%clk 0:02:36.9]} 15. Nxg5 {[%clk 0:02:04]} 15...
hxg5 {[%clk 0:01:49.4]} 16. Qh5 {[%clk 0:02:04.1]} 16... Nf6 {[%clk 0:01:49.1]}
17. Qxg5+ {[%clk 0:02:04.8]} 17... Qg7 {[%clk 0:01:50.6]} 18. Bxf4 {[%clk
0:02:05.4]} 18... Bxf4 {[%clk 0:01:42]} 19. Qxf4 {[%clk 0:02:06]} 19... Nd5
{[%clk 0:01:41.9]} 20. Qd6 {[%clk 0:01:22]} 20... Nf4 {[%clk 0:01:16.9]} 21. Be4
{[%clk 0:01:21.5]} 21... Nh3+ {[%clk 0:01:17.4]} 22. Kh1 {[%clk 0:01:20.6]}
22... Nxf2+ {[%clk 0:01:18.3]} 23. Rxf2 {[%clk 0:00:55.8]} 23... Rxf2 {[%clk
0:01:20.2]} 24. Re1 {[%clk 0:00:45.9]} 24... Bd7 {[%clk 0:01:14.8]} 25. h3
{[%clk 0:00:43.9]} 25... Bc6 {[%clk 0:00:39.1]} 26. Bxc6 {[%clk 0:00:38.2]}
26... bxc6 {[%clk 0:00:36.4]} 27. Qxe6+ {[%clk 0:00:38.5]} 27... Kh8 {[%clk
0:00:32.1]} 28. Qxc6 {[%clk 0:00:31.8]} 28... Raf8 {[%clk 0:00:30.1]} 29. Re4
{[%clk 0:00:26.1]} 29... Qxg2# {[%clk 0:00:29.1]} 0-1

[Event "*** Titled Tuesday 3|2 Blitz (Early)"]
[Site "Chess.com"]
[Date "2016.11.01"]
[Round "8"]
[White "swayamsm"]
[Black "Smirnov_Pavel"]
[Result "1-0"]
[WhiteElo "2656"]
[BlackElo "2555"]
[TimeControl "180+2"]
[EndTime "12:44:42 PDT"]
[Termination "swayamsm won by resignation"]

1. d4 {[%clk 0:03:01.9]} 1... d5 {[%clk 0:03:00.3]} 2. c4 {[%clk 0:02:59.7]}
2... e6 {[%clk 0:03:00.8]} 3. Nc3 {[%clk 0:03:00.3]} 3... c6 {[%clk 0:03:01.7]}
4. Nf3 {[%clk 0:03:01.2]} 4... Nf6 {[%clk 0:03:02.1]} 5. Bg5 {[%clk 0:03:01.5]}
5... h6 {[%clk 0:03:02.2]} 6. Bh4 {[%clk 0:02:56.6]} 6... dxc4 {[%clk
0:03:02.3]} 7. e4 {[%clk 0:02:52.1]} 7... g5 {[%clk 0:03:02.4]} 8. Bg3 {[%clk
0:02:51.7]} 8... b5 {[%clk 0:03:03.5]} 9. e5 {[%clk 0:02:25]} 9... Nd5 {[%clk
0:03:02.6]} 10. Nd2 {[%clk 0:02:22.4]} 10... Qb6 {[%clk 0:03:02]} 11. Nde4
{[%clk 0:02:21.1]} 11... Nd7 {[%clk 0:03:02.2]} 12. h4 {[%clk 0:02:19.7]} 12...
gxh4 {[%clk 0:02:58.8]} 13. Bxh4 {[%clk 0:02:11.6]} 13... Bb7 {[%clk 0:02:56.5]}
14. a4 {[%clk 0:02:06.8]} 14... a5 {[%clk 0:02:50.4]} 15. Nd6+ {[%clk
0:01:56.5]} 15... Bxd6 {[%clk 0:02:49.7]} 16. exd6 {[%clk 0:01:58.4]} 16... b4
{[%clk 0:02:43.6]} 17. Ne4 {[%clk 0:01:57.1]} 17... c5 {[%clk 0:02:42.9]} 18.
Bxc4 {[%clk 0:01:54.5]} 18... cxd4 {[%clk 0:02:43.3]} 19. Qh5 {[%clk 0:01:43.4]}
19... Nf4 {[%clk 0:02:27.4]} 20. Qf3 {[%clk 0:01:41.4]} 20... Ng6 {[%clk
0:02:13.5]} 21. Bb5 {[%clk 0:01:34.8]} 21... Bxe4 {[%clk 0:01:22.1]} 22. Qxe4
{[%clk 0:01:11.5]} 22... Ra7 {[%clk 0:01:22.4]} 23. Bf6 {[%clk 0:01:12.5]} 23...
Rg8 {[%clk 0:00:39.5]} 24. Bxd4 {[%clk 0:01:11.8]} 24... Qb7 {[%clk 0:00:29.1]}
25. Bc6 {[%clk 0:01:12]} 25... Qa6 {[%clk 0:00:29.5]} 26. Bxa7 {[%clk
0:01:08.3]} 26... Qxa7 {[%clk 0:00:30.5]} 27. Rc1 {[%clk 0:01:07.4]} 27... Kf8
{[%clk 0:00:29.9]} 28. Bxd7 {[%clk 0:00:53.4]} 28... Qxd7 {[%clk 0:00:30.2]} 29.
Qc6 {[%clk 0:00:55]} 29... Qa7 {[%clk 0:00:31.4]} 30. Qc5 {[%clk 0:00:49.9]}
30... Qxc5 {[%clk 0:00:25.6]} 31. Rxc5 {[%clk 0:00:51.8]} 31... Kg7 {[%clk
0:00:26.8]} 32. Rxa5 {[%clk 0:00:52.1]} 32... Rc8 {[%clk 0:00:25.9]} 33. O-O
{[%clk 0:00:51.6]} 1-0

[Event "*** Titled Tuesday 3|2 Blitz (Early)"]
[Site "Chess.com"]
[Date "2016.11.01"]
[Round "8"]
[White "Aygehovit1992"]
[Black "Taabling"]
[Result "0-1"]
[WhiteElo "2426"]
[BlackElo "2340"]
[TimeControl "180+2"]
[EndTime "12:45:10 PDT"]
[Termination "Taabling won by resignation"]

1. e4 {[%clk 0:03:01.9]} 1... c5 {[%clk 0:02:56.5]} 2. Nf3 {[%clk 0:03:02.5]}
2... d6 {[%clk 0:02:57.9]} 3. d4 {[%clk 0:03:03.4]} 3... Nf6 {[%clk 0:02:59.4]}
4. Nc3 {[%clk 0:03:03.5]} 4... cxd4 {[%clk 0:02:59.7]} 5. Nxd4 {[%clk
0:03:05.4]} 5... g6 {[%clk 0:03:01.3]} 6. Be3 {[%clk 0:03:04.4]} 6... Bg7 {[%clk
0:03:02.3]} 7. f3 {[%clk 0:03:06]} 7... O-O {[%clk 0:03:03.3]} 8. Qd2 {[%clk
0:03:07.6]} 8... Nc6 {[%clk 0:03:04.7]} 9. O-O-O {[%clk 0:03:07.6]} 9... d5
{[%clk 0:03:05.4]} 10. exd5 {[%clk 0:03:01.4]} 10... Nxd5 {[%clk 0:03:05.2]} 11.
Nxc6 {[%clk 0:03:03]} 11... bxc6 {[%clk 0:03:05.8]} 12. Bd4 {[%clk 0:03:04.6]}
12... Bxd4 {[%clk 0:03:03.7]} 13. Qxd4 {[%clk 0:03:05.4]} 13... Qb6 {[%clk
0:03:05.1]} 14. Na4 {[%clk 0:03:03.3]} 14... Qc7 {[%clk 0:03:05.6]} 15. Bc4
{[%clk 0:02:58.5]} 15... Rd8 {[%clk 0:03:00.5]} 16. Bb3 {[%clk 0:02:42.2]} 16...
Rd6 {[%clk 0:02:58.3]} 17. Qc5 {[%clk 0:02:38.3]} 17... Be6 {[%clk 0:02:48.5]}
18. h4 {[%clk 0:02:36.1]} 18... h5 {[%clk 0:02:46.4]} 19. Rhe1 {[%clk
0:02:35.6]} 19... Rad8 {[%clk 0:02:44.9]} 20. Re4 {[%clk 0:01:36.3]} 20... Nf6
{[%clk 0:02:40.8]} 21. Red4 {[%clk 0:01:34.5]} 21... Bxb3 {[%clk 0:02:30.5]} 22.
axb3 {[%clk 0:01:31.4]} 22... Rd5 {[%clk 0:02:18.5]} 23. Rxd5 {[%clk 0:01:28.9]}
23... Rxd5 {[%clk 0:02:18.1]} 24. Rxd5 {[%clk 0:01:29.2]} 24... Nxd5 {[%clk
0:02:20]} 25. Nc3 {[%clk 0:00:59.4]} 25... Qe5 {[%clk 0:02:01.4]} 26. Kb1 {[%clk
0:00:44.9]} 26... Nxc3+ {[%clk 0:01:36.3]} 27. Qxc3 {[%clk 0:00:45.1]} 27...
Qxc3 {[%clk 0:01:36.3]} 28. bxc3 {[%clk 0:00:47]} 28... e5 {[%clk 0:01:37.6]}
29. Kc1 {[%clk 0:00:48.2]} 29... f5 {[%clk 0:01:37.7]} 30. Kd2 {[%clk
0:00:49.6]} 30... Kf7 {[%clk 0:01:38.9]} 31. b4 {[%clk 0:00:50.2]} 31... Ke6
{[%clk 0:01:37.8]} 32. c4 {[%clk 0:00:51.6]} 32... a6 {[%clk 0:01:38]} 33. Ke3
{[%clk 0:00:52.5]} 33... c5 {[%clk 0:01:25.9]} 34. c3 {[%clk 0:00:49.3]} 34...
Kd6 {[%clk 0:01:24.3]} 35. Kd3 {[%clk 0:00:46.8]} 35... Kc6 {[%clk 0:01:23.7]}
36. Kc2 {[%clk 0:00:33.8]} 36... Kb6 {[%clk 0:01:23.4]} 37. Kb2 {[%clk 0:00:21]}
37... a5 {[%clk 0:01:20.2]} 38. bxa5+ {[%clk 0:00:21.7]} 38... Kxa5 {[%clk
0:01:20.8]} 39. Kb3 {[%clk 0:00:23.6]} 39... e4 {[%clk 0:01:09.8]} 40. fxe4
{[%clk 0:00:18.7]} 40... fxe4 {[%clk 0:01:11.7]} 41. Kc2 {[%clk 0:00:19.3]}
41... Ka4 {[%clk 0:01:12.8]} 42. Kd2 {[%clk 0:00:21]} 42... Kb3 {[%clk
0:01:13.7]} 43. Ke3 {[%clk 0:00:22.7]} 43... Kxc3 {[%clk 0:01:12.8]} 44. Kxe4
{[%clk 0:00:24.6]} 44... Kxc4 {[%clk 0:01:13.9]} 45. Ke5 {[%clk 0:00:26.2]}
45... Kd3 {[%clk 0:01:14]} 46. Kf6 {[%clk 0:00:28.1]} 46... c4 {[%clk
0:01:15.7]} 47. Kxg6 {[%clk 0:00:30]} 47... c3 {[%clk 0:01:17.6]} 0-1